fUSD/lending_fUSD_20260311
["ID","MTS","AMOUNT","RATE_DAILY","PERIOD"]
[408199768,1773220006834,160.04,0.00011201,2]
[408199769,1773220007352,160.04,0.00011667,2]
[408199770,1773220007542,160.04,0.00012134,2]
[408199771,1773220007735,160.04,0.00012601,2]
[408199772,1773220007928,160.04,0.00013067,2]
[408199773,1773220008135,160.04,0.00013534,2]
[408199774,1773220008337,160.04,0.00014001,2]
[408199775,1773220008540,160.04,0.00014467,2]
[408199776,1773220008737,160.04,0.00014934,2]
[408199788,1773220226718,151.0,0.00018989,120]
[408199802,1773220231938,-1131.64,0.0001528,2]
[408199803,1773220231949,-277.0,0.0001528,2]
[408199804,1773220231958,-160.04,0.00015401,2]
[408199805,1773220231967,-160.04,0.00015867,2]
[408199806,1773220231976,-1755.73,0.000162,5]
[408199807,1773220231994,-3244.27703412,0.000162,5]
[408199808,1773220232002,-160.04,0.00016334,2]
[408199809,1773220232012,-160.04,0.00016801,2]
[408199810,1773220232021,-300.0,0.00016807,2]
[408199811,1773220232030,-2500.0,0.00016808,2]
[408199812,1773220232039,-2500.0,0.00016808,2]
[408199813,1773220232048,-311.62887694,0.00016808,2]
[408199814,1773220232059,-2188.37112306,0.00016808,2]
[408199815,1773220232068,-1178.04523476,0.00016808,2]
[408199816,1773220232080,-1321.95476524,0.00016808,2]
[408199817,1773220232089,-2015.97,0.00016808,2]
[408199818,1773220232099,-195.0,0.00016808,2]
[408199820,1773220232108,-504.0,0.00017,2]
[408199822,1773220232117,-503.0,0.00017,2]
[408199824,1773220232126,-244.508012,0.00017258,7]
[408199825,1773220232135,-160.04,0.00017267,2]
[408199827,1773220232145,-160.04,0.00017734,2]
[408199828,1773220232154,-502.0,0.00017808,2]
[408199829,1773220232163,-919.11,0.00018019,2]
[408199830,1773220232172,-500.0,0.00018019,2]
[408199831,1773220232181,-210.45,0.00018019,2]
[408199832,1773220232191,-200.0,0.00018019,2]
[408199833,1773220232200,-555.0,0.00018166,2]
[408199834,1773220232209,-555.0,0.00018166,2]
[408199835,1773220232218,-555.0,0.00018183,2]
[408199836,1773220232227,-555.0,0.00018183,2]
[408199837,1773220232236,-1320.58,0.00018184,2]
[408199838,1773220232245,-555.0,0.00018312,2]
[408199839,1773220232255,-5000.0,0.00018313,2]
[408199840,1773220232264,-2000.0,0.00018313,2]
[408199841,1773220232273,-420.0,0.0001836,2]
[408199842,1773220232285,-354.80481573,0.00018442,2]
[408199843,1773220232295,-150.0,0.00018462,2]
[408199844,1773220232304,-354.80481573,0.00018485,2]
[408199845,1773220232314,-1034.04,0.00018488,2]
[408199846,1773220232323,-65496.89086837,0.00018523,2]
[408199847,1773220232332,-696.81,0.00018533,2]
[408199848,1773220232342,-1616.01,0.00018533,2]
[408199849,1773220232351,-6113.4,0.00018533,2]
[408199850,1773220232361,-9999.99,0.00018533,2]
[408199851,1773220232370,-150.99,0.00018533,2]
[408199852,1773220232379,-299.99,0.00018533,4]
[408199853,1773220232389,-1566.67,0.00018533,2]
[408199854,1773220232398,-719.21,0.00018533,2]
[408199855,1773220232408,-9999.99,0.00018533,2]
[408199856,1773220232417,-13552.74,0.00018533,2]
[408199857,1773220232426,-9391.84569525,0.00018533,2]
[408199858,1773220232438,-608.14430475,0.00018533,2]
[408199859,1773220232447,-999.99,0.00018533,2]
[408199860,1773220232456,-2578.96,0.00018585,2]
[408199861,1773220232466,-500.0,0.00018788,2]
[408199862,1773220232477,-150.0,0.00018788,2]
[408199863,1773220232486,-150.0,0.00018788,2]
[408199864,1773220232495,-177.99151511,0.00018788,2]
[408199865,1773220232505,-500.0,0.00018788,2]
[408199866,1773220232514,-500.0,0.00018788,2]
[408199867,1773220232524,-500.0,0.00018788,2]
[408199868,1773220232533,-500.0,0.00018788,2]
[408199869,1773220232543,-150.0,0.00018788,2]
[408199870,1773220232553,-150.0,0.00018788,2]
[408199871,1773220232562,-17953.8788,0.00018789,2]
[408199872,1773220232572,-645.57871635,0.00018843,2]
[408199873,1773220232582,-150.0,0.00018843,2]
[408199874,1773220232591,-150.0,0.00018843,2]
[408199875,1773220232600,-500.0,0.00018843,2]
[408199876,1773220232610,-500.0,0.00018843,2]
[408199877,1773220232619,-500.0,0.00018843,2]
[408199878,1773220232628,-518.0,0.00018843,2]
[408199879,1773220232637,-2500.0,0.00018859,2]
[408199880,1773220232647,-2946.371,0.00018889,2]
[408199881,1773220232656,-179.34956161,0.00018889,2]
[408199882,1773220232670,-1548.02853715,0.00018889,2]
[408199883,1773220232679,-4486.1846,0.00018889,2]
[408199884,1773220232689,-200.0,0.00018898,2]
[408199885,1773220232698,-450.0,0.00018898,2]
[408199886,1773220232708,-500.0,0.00018898,2]
[408199887,1773220232717,-457.14225163,0.00018898,2]
[408199888,1773220232726,-197.70766094,0.000189,3]
[408199889,1773220232735,-176.04305709,0.000189,2]
[408199890,1773220232745,-7593.97889943,0.000189,2]
[408199891,1773220232754,-1891.21051425,0.000189,2]
[408199892,1773220232763,-919.11,0.0001892,2]
[408199893,1773220232772,-150.0,0.00018952,2]
[408199894,1773220232782,-3697.0,0.00018959,2]
[408199895,1773220232791,-621.0,0.00018959,2]
[408199896,1773220232800,-500.97367586,0.00018973,2]
[408199897,1773220232809,-500.0,0.00018973,2]
[408199898,1773220232819,-501.15105825,0.00018973,2]
[408199899,1773220232832,-500.41007802,0.00018973,2]
[408199900,1773220232842,-500.0,0.00018973,2]
[408199901,1773220232851,-1099.36341061,0.00018979,2]
[408199902,1773220232860,-257.93,0.00018979,2]
[408199903,1773220232870,-257.93,0.00018979,2]
[408199904,1773220232880,-257.93,0.00018979,2]
[408199905,1773220232889,-257.93,0.00018979,2]
[408199906,1773220232899,-257.93,0.00018979,2]
[408199907,1773220232910,-151.0,0.00018986,2]
[408199908,1773220232921,-542.59073283,0.00018988,2]
[408199909,1773220232930,-617.9,0.00018988,2]
[408199910,1773220232939,-500.0,0.00018988,2]
[408199911,1773220232951,-350.0,0.00018988,2]
[408199912,1773220232959,-350.0,0.00018988,2]
[408199913,1773220232969,-304.43194707,0.00018988,2]
[408199914,1773220232978,-500.0,0.00018988,2]
[408199915,1773220232990,-500.0,0.00018988,2]
[408199916,1773220232999,-500.0,0.00018988,2]
[408199917,1773220233008,-500.0,0.00018988,2]
[408199918,1773220233017,-500.0,0.00018988,2]
[408199919,1773220233026,-500.0,0.00018988,2]
[408199920,1773220233035,-506.63695301,0.00018988,2]
[408199921,1773220233045,-500.0,0.00018988,2]
[408199922,1773220233059,-500.0,0.00018988,2]
[408199923,1773220233068,-500.0,0.00018988,2]
[408199924,1773220233079,-500.0,0.00018988,2]
[408199925,1773220233088,-500.0,0.00018988,2]
[408199926,1773220233097,-515.12356361,0.00018988,2]
[408199927,1773220233106,-500.0,0.00018988,2]
[408199928,1773220233116,-630.81055911,0.00018988,2]
[408199929,1773220233126,-500.0,0.00018988,2]
[408199930,1773220233136,-530.47109549,0.00018988,2]
[408199931,1773220233147,-500.0,0.00018988,2]
[408199932,1773220233157,-500.0,0.00018988,2]
[408199933,1773220233168,-288.92414602,0.00018988,2]
[408199934,1773220233177,-499.24414182,0.00018988,2]
[408199935,1773220233186,-338.08710033,0.00018988,2]
[408199936,1773220233196,-500.0,0.00018988,2]
[408199937,1773220233206,-500.0,0.00018988,2]
[408199938,1773220233215,-197.96092583,0.00018988,2]
[408199939,1773220233224,-500.0,0.00018988,2]
[408199940,1773220233234,-185.77278074,0.00018988,2]
[408199941,1773220233243,-300.0,0.00018988,2]
[408199942,1773220233253,-666.0,0.00018988,2]
[408199943,1773220233262,-300.0,0.00018988,2]
[408199944,1773220233271,-8765.94810749,0.00018989,2]
[408199947,1773220237959,-840.25539698,0.00018989,2]
[408199948,1773220237971,-1523.42760257,0.00018989,2]
[408199949,1773220237982,-106715.04853556,0.00018989,2]
[408199950,1773220238012,-349.16439733,0.00018989,2]
[408199951,1773220238120,-1128.25873982,0.00018989,2]
[408199952,1773220238175,-531.13294994,0.00018989,2]
[408199963,1773220239809,151.0,0.00018989,120]
[408199965,1773220240389,-166.66,0.00017304,2]
[408199966,1773220240399,-166.66,0.00017668,2]
[408199967,1773220240409,-166.66,0.00018033,2]
[408199968,1773220240418,-500.0,0.00018988,2]
[408199969,1773220240427,-2380146.76427031,0.00018989,2]
[408199970,1773220240437,-318598.1991,0.00018989,2]
[408199971,1773220240446,-3004.29,0.00018989,2]
[408199972,1773220240456,-3004.29,0.00018989,2]
[408199973,1773220240466,-3004.29,0.00018989,2]
[408199974,1773220240475,-3004.29,0.00018989,2]
[408199975,1773220240484,-3908.63,0.00018989,2]
[408199976,1773220240494,-237.83391358,0.00019,2]
[408199977,1773220240503,-150.0,0.00019005,2]
[408199978,1773220240512,-150.0,0.00019005,2]
[408199979,1773220240524,-150.0,0.00019005,2]
[408199980,1773220240535,-150.0,0.00019005,2]
[408199981,1773220240546,-150.0,0.00019005,2]
[408199982,1773220240558,-500.0,0.00019005,2]
[408199983,1773220240569,-150.84360211,0.00019005,2]
[408199984,1773220240580,-150.0,0.00019005,2]
[408199985,1773220240591,-150.0,0.00019005,2]
[408199986,1773220240602,-500.0,0.00019005,2]
[408199987,1773220240613,-300.0,0.00019006,2]
[408199988,1773220240622,-666.0,0.00019006,2]
[408199989,1773220240632,-10522.8660002,0.00019054,2]
[408199990,1773220240642,-23296.3897877,0.00019054,2]
[408199991,1773220240652,-150.0,0.0001906,2]
[408199992,1773220240663,-150.0,0.0001906,2]
[408199993,1773220240673,-512.63986513,0.0001906,2]
[408199994,1773220240684,-508.22060755,0.0001906,2]
[408199995,1773220240695,-350.0,0.00019068,2]
[408199996,1773220240705,-500.0,0.00019073,2]
[408199997,1773220240716,-500.81396462,0.00019073,2]
[408199998,1773220240727,-500.0,0.00019073,2]
[408199999,1773220240737,-300.0,0.00019088,2]
[408200000,1773220240748,-300.0,0.00019088,2]
[408200001,1773220240758,-666.0,0.00019088,2]
[408200002,1773220240769,-300.0,0.00019088,2]
[408200003,1773220240780,-222099.6934102,0.00019089,2]
[408200004,1773220240792,-8560.3294071,0.00019089,2]
[408200005,1773220240802,-1548.02853712,0.00019091,2]
[408200006,1773220240812,-2025.0,0.000191,2]
[408200007,1773220240822,-150.0,0.00019115,2]
[408200008,1773220240833,-168.0,0.00019122,2]
[408200009,1773220240844,-49541.73241373,0.0001915,2]
[408200010,1773220240854,-168.0,0.00019151,2]
[408200011,1773220240863,-4470.9125616,0.00019152,2]
[408200012,1773220240873,-17351.9914134,0.00019152,2]
[408200013,1773220240883,-7755.2351426,0.00019152,2]
[408200014,1773220240892,-150.0,0.00019169,2]
[408200015,1773220240903,-500.0,0.00019173,2]
[408200016,1773220240917,-500.0,0.00019173,2]
[408200017,1773220240927,-500.0,0.00019173,2]
[408200018,1773220240937,-981.54307946,0.00019178,2]
[408200019,1773220240947,-168.0,0.00019198,2]
[408200020,1773220240958,-1874.0,0.000192,2]
[408200021,1773220240968,-711.51,0.000192,2]
[408200022,1773220240978,-250.0,0.00019224,2]
[408200023,1773220240990,-1000.0,0.00019239,2]
[408200024,1773220241000,-350.0,0.00019243,2]
[408200025,1773220241011,-1548.02853712,0.00019293,2]
[408200026,1773220241021,-1265.09428998,0.00019311,2]
[408200027,1773220241031,-500.0,0.00019311,2]
[408200028,1773220241041,-578.20924308,0.00019311,2]
[408200029,1773220241051,-174.61919141,0.00019311,2]
[408200030,1773220241061,-290.26104003,0.00019311,2]
[408200031,1773220241072,-200.0,0.00019311,2]
[408200032,1773220241082,-151.0,0.00019339,2]
[408200033,1773220241092,-500.0,0.00019366,2]
[408200034,1773220241102,-151.0,0.00019412,2]
[408200035,1773220241112,-533.36,0.00019414,2]
[408200036,1773220241122,-3107.56893754,0.00019415,2]
[408200037,1773220241133,-781.74,0.00019415,2]
[408200038,1773220241144,-500.0,0.00019421,2]
[408200039,1773220241153,-500.0,0.00019476,2]
[408200040,1773220241163,-151.0,0.00019495,2]
[408200041,1773220241174,-1548.02853712,0.00019496,2]
[408200042,1773220241184,-300.0,0.00019497,2]
[408200043,1773220241194,-300.0,0.00019497,2]
[408200044,1773220241204,-417.14321601,0.00019497,2]
[408200045,1773220241215,-64413.90342414,0.00019498,2]
[408200046,1773220241227,-1824.62,0.000195,2]
[408200047,1773220241237,-2000.0,0.000195,2]
[408200048,1773220241247,-2390.0,0.0001953,2]
[408200049,1773220241258,-500.0,0.00019531,2]
[408200050,1773220241268,-1085.91,0.00019563,2]
[408200051,1773220241279,-500.0,0.00019586,2]
[408200052,1773220241289,-2000.0,0.000196,2]
[408200053,1773220241299,-259.54,0.00019609,2]
[408200054,1773220241310,-160.0,0.00019619,2]
[408200055,1773220241323,-500.0,0.00019641,2]
[408200056,1773220241334,-168.0,0.00019651,2]
[408200057,1773220241345,-533.36,0.00019688,2]
[408200058,1773220241355,-781.74,0.00019689,2]
[408200059,1773220241366,-500.0,0.00019696,2]
[408200060,1773220241376,-1548.02853712,0.00019698,2]
[408200061,1773220241387,-2000.0,0.000197,2]
[408200062,1773220241397,-500.0,0.00019721,2]
[408200063,1773220241407,-326.7545929,0.00019721,2]
[408200064,1773220241418,-500.0,0.00019751,2]
[408200066,1773220241428,-168.0,0.00019792,2]
[408200067,1773220241438,-2000.0,0.000198,2]
[408200068,1773220241448,-500.0,0.00019806,2]
[408200069,1773220241458,-919.11,0.00019821,2]
[408200070,1773220241469,-168.0,0.00019842,2]
[408200071,1773220241479,-1000.0,0.00019843,2]
[408200072,1773220241488,-640.239,0.00019843,2]
[408200073,1773220241499,-181.08010149,0.00019859,2]
[408200074,1773220241510,-500.0,0.00019861,2]
[408200075,1773220241522,-200.0,0.0001989,2]
[408200076,1773220241534,-500.0,0.00019899,2]
[408200077,1773220241545,-500.0,0.00019899,2]
[408200078,1773220241555,-500.0,0.00019899,2]
[408200079,1773220241564,-500.0,0.00019899,2]
[408200080,1773220241575,-500.0,0.00019899,2]
[408200081,1773220241585,-500.0,0.00019899,2]
[408200082,1773220241595,-500.0,0.00019899,2]
[408200083,1773220241605,-500.0,0.00019899,2]
[408200084,1773220241614,-500.0,0.00019899,2]
[408200085,1773220241624,-1120.3856,0.00019899,2]
[408200086,1773220241635,-198.897494,0.000199,2]
[408200087,1773220241645,-942.11246682,0.000199,2]
[408200088,1773220241656,-1548.02853712,0.000199,2]
[408200089,1773220241666,-2000.0,0.000199,2]
[408200090,1773220241676,-570.86,0.00019902,2]
[408200091,1773220241687,-500.0,0.00019916,2]
[408200092,1773220241698,-152.90665268,0.0001994,2]
[408200093,1773220241708,-533.36,0.00019962,2]
[408200094,1773220241718,-781.74,0.00019963,2]
[408200095,1773220241728,-598.0,0.00019965,2]
[408200096,1773220241738,-150.13270217,0.00019973,2]
[408200097,1773220241748,-1099.36341061,0.0001999,2]
[408200098,1773220241757,-1099.36341061,0.0001999,2]
[408200099,1773220241767,-151.0,0.00019997,2]
[408200100,1773220241776,-151.0,0.00019997,2]
[408200101,1773220241787,-151.0,0.00019997,2]
[408200102,1773220241797,-300.0,0.00019999,2]
[408200103,1773220241806,-300.0,0.00019999,2]
[408200104,1773220241816,-554.34014391,0.00019999,2]
[408200105,1773220241826,-500.0,0.00019999,2]
[408200106,1773220241836,-500.0,0.00019999,2]
[408200107,1773220241846,-500.0,0.00019999,2]
[408200108,1773220241857,-500.0,0.00019999,2]
[408200109,1773220241867,-500.0,0.00019999,2]
[408200110,1773220241878,-500.0,0.00019999,2]
[408200111,1773220241888,-500.0,0.00019999,2]
[408200112,1773220241897,-204.07600257,0.00019999,5]
[408200113,1773220241908,-1090.54690258,0.00019999,5]
[408200114,1773220241921,-1050486.51003834,0.0002,2]
[408200115,1773220241931,-300.0,0.0002,7]
[408200116,1773220241942,-17965.25,0.0002,2]
[408200117,1773220241952,-296.75496853,0.0002,2]
[408200118,1773220241962,-188.75,0.0002,2]
[408200119,1773220241972,-155.904935,0.0002,2]
[408200120,1773220241982,-2225123.2493528,0.0002,2]
[408200125,1773220243069,-166.66,0.00018397,2]
[408200126,1773220243080,-166.66,0.00018761,2]
[408200127,1773220243090,-166.66,0.00019126,2]
[408200128,1773220243100,-689.47646289,0.0002,2]
[408200129,1773220243362,-2522.34803076,0.0002,2]
[408200136,1773220266047,151.0,0.0002,120]
[408200137,1773220278419,151.0,0.0002,120]
[408200138,1773220295027,247.572983,0.0002,120]
[408200140,1773220342616,500.0,0.00015,30]
[408200141,1773220343102,500.0,0.00015,30]
[408200142,1773220343619,500.0,0.000101,2]
[408200143,1773220344107,635.2603099,0.000101,2]
[408200144,1773220346281,500.0,0.00015,30]
[408200145,1773220346851,124.1896901,0.00015,30]
[408200146,1773220346875,375.8103099,0.00015,30]
[408200147,1773220347342,500.0,0.00015,30]
[408200148,1773220347832,500.0,0.000101,2]
[408200149,1773220348314,500.0,0.000101,2]
[408200150,1773220348820,500.0,0.00015,30]
[408200151,1773220349657,650.75817212,0.00015,30]
[408200152,1773220352862,508.76593059,0.00015,30]
[408200153,1773220353077,485.54894344,0.00015,30]
[408200155,1773220385853,162.0,0.000151,2]
[408200156,1773220391446,171.63,0.00014111,2]
[408200158,1773220393689,151.0,0.0002,120]
[408200159,1773220406068,151.0,0.0002,120]
[408200192,1773221432044,-191.44955289,0.00016898,2]
[408200193,1773221432053,-2500.0,0.00016948,2]
[408200194,1773221432062,-1200.0,0.00016999,2]
[408200195,1773221432071,-4571.58674386,0.00017,2]
[408200196,1773221432097,-449.87939212,0.00017,2]
[408200197,1773221432207,-2302.27765932,0.00017,2]
[408200198,1773221432216,-504.0,0.00017,2]
[408200199,1773221432226,-1783.52829808,0.00017107,2]
[408200200,1773221432239,-500.0,0.00017639,2]
[408200201,1773221432248,-2472.17,0.00017676,2]
[408200202,1773221432257,-234.306168,0.00017684,7]
[408200204,1773221432266,-1500.0,0.00017747,2]
[408200205,1773221432276,-299.53,0.00017816,2]
[408200208,1773221432286,-478.4,0.00018246,2]
[408200210,1773221432295,-150.0,0.00018298,2]
[408200212,1773221432304,-1856.36734763,0.00018299,2]
[408200214,1773221432315,-29701.01265237,0.00018299,2]
[408200216,1773221432324,-297.82,0.00018328,2]
[408200218,1773221432333,-165.83,0.00018328,2]
[408200220,1773221432343,-5501.19,0.00018328,2]
[408200222,1773221432352,-395.0,0.00018423,2]
[408200224,1773221432362,-292.0,0.00018545,2]
[408200225,1773221432371,-175.64517432,0.00018553,2]
[408200226,1773221432380,-150.99,0.00018553,2]
[408200227,1773221432391,-180.58,0.0001856,2]
[408200228,1773221432400,-2500.0,0.00018588,2]
[408200229,1773221432409,-150.0,0.00018616,2]
[408200230,1773221432419,-238.1,0.00018616,2]
[408200232,1773221432428,-7655.43,0.00018616,2]
[408200234,1773221432439,-312.21,0.00018616,2]
[408200236,1773221432448,-1680.0,0.00018659,2]
[408200237,1773221432460,-1541.2,0.00018756,2]
[408200238,1773221432472,-150.0,0.00018788,2]
[408200239,1773221432483,-150.0,0.00018788,2]
[408200240,1773221432492,-150.0,0.00018788,2]
[408200241,1773221432502,-150.0,0.00018788,2]
[408200242,1773221432513,-9025.28669704,0.000188,2]
[408200243,1773221432524,-299.53,0.00018806,2]
[408200244,1773221432533,-32938.1023,0.00018816,2]
[408200245,1773221432542,-1000.0,0.00018816,2]
[408200246,1773221432551,-150.0,0.00018841,2]
[408200247,1773221432559,-150.0,0.00018841,2]
[408200248,1773221432569,-150.0,0.00018841,2]
[408200249,1773221432579,-150.0,0.00018841,2]
[408200250,1773221432588,-150.0,0.00018841,2]
[408200251,1773221432597,-150.0,0.00018841,2]
[408200252,1773221432607,-150.0,0.00018841,2]
[408200253,1773221432617,-150.0,0.00018841,2]
[408200254,1773221432625,-150.0,0.00018841,2]
[408200255,1773221432634,-150.0,0.00018841,2]
[408200256,1773221432644,-255.32887271,0.00018896,2]
[408200257,1773221432653,-150.0,0.00018896,2]
[408200258,1773221432663,-150.0,0.00018896,2]
[408200259,1773221432673,-150.0,0.00018896,2]
[408200260,1773221432683,-150.0,0.00018896,2]
[408200261,1773221432693,-250.0,0.00018896,2]
[408200262,1773221432702,-150.0,0.00018896,2]
[408200263,1773221432712,-150.0,0.00018896,2]
[408200264,1773221432721,-35832.88980258,0.000189,2]
[408200265,1773221432735,-12881.39079207,0.000189,2]
[408200266,1773221432747,-49678.77110535,0.000189,2]
[408200267,1773221432757,-1265.09428998,0.000189,2]
[408200268,1773221432766,-500.0,0.000189,2]
[408200269,1773221432777,-578.20924308,0.000189,2]
[408200270,1773221432786,-174.61919141,0.000189,2]
[408200271,1773221432795,-290.26104003,0.000189,2]
[408200272,1773221432804,-200.0,0.000189,2]
[408200273,1773221432814,-150.0,0.00018951,2]
[408200274,1773221432824,-200.0,0.00018951,2]
[408200275,1773221432832,-200.0,0.00018951,2]
[408200276,1773221432841,-500.0,0.00018955,2]
[408200277,1773221432851,-439.09091978,0.00018976,2]
[408200278,1773221432866,-2800.90908022,0.00018976,2]
[408200279,1773221432876,-539.6122178,0.00018988,2]
[408200280,1773221432885,-500.0,0.00018988,2]
[408200281,1773221432894,-500.0,0.00018988,2]
[408200282,1773221432903,-1.14514785,0.00018988,2]
[408200287,1773221440587,-998.22301318,0.000189,2]
[408200288,1773221440596,-498.85485215,0.00018988,2]
[408200289,1773221440605,-500.0,0.00018988,2]
[408200290,1773221440613,-500.0,0.00018988,2]
[408200291,1773221440623,-500.0,0.00018988,2]
[408200292,1773221440632,-500.0,0.00018988,2]
[408200293,1773221440641,-500.0,0.00018988,2]
[408200294,1773221440651,-500.0,0.00018988,2]
[408200295,1773221440660,-367.61197577,0.00018988,2]
[408200296,1773221440669,-622.64621392,0.00018988,2]
[408200297,1773221440678,-500.0,0.00018988,2]
[408200298,1773221440687,-21937.79823114,0.00019,2]
[408200299,1773221440696,-2000.0,0.00019,2]
[408200300,1773221440705,-150.0,0.00019005,2]
[408200301,1773221440714,-500.0,0.0001901,2]
[408200302,1773221440723,-150.0,0.0001906,2]
[408200303,1773221440732,-500.0,0.00019065,2]
[408200304,1773221440742,-2000.0,0.000191,2]
[408200305,1773221440751,-200.0,0.00019115,2]
[408200306,1773221440760,-500.0,0.0001912,2]
[408200307,1773221440769,-9025.28669702,0.00019138,2]
[408200308,1773221440778,-500.0,0.00019175,2]
[408200309,1773221440788,-150.14636363,0.00019178,2]
[408200310,1773221440797,-1000.0,0.000192,2]
[408200311,1773221440806,-2000.0,0.000192,2]
[408200312,1773221440815,-500.0,0.0001923,2]
[408200313,1773221440824,-517.0,0.00019254,2]
[408200314,1773221440833,-500.0,0.00019285,2]
[408200315,1773221440842,-533.36,0.00019292,2]
[408200316,1773221440851,-2000.0,0.000193,2]
[408200317,1773221440860,-781.74,0.00019308,2]
[408200318,1773221440869,-500.0,0.0001934,2]
[408200319,1773221440878,-168.0,0.00019362,2]
[408200320,1773221440887,-500.0,0.00019395,2]
[408200321,1773221440896,-2000.0,0.000194,2]
[408200322,1773221440905,-181.08010149,0.00019448,2]
[408200323,1773221440914,-500.0,0.0001945,2]
[408200324,1773221440926,-9025.28669702,0.00019477,2]
[408200325,1773221440935,-2000.0,0.000195,2]
[408200326,1773221440945,-500.0,0.00019505,2]
[408200327,1773221440955,-1630.84305599,0.00019515,2]
[408200328,1773221440964,-533.36,0.00019566,2]
[408200329,1773221440973,-168.0,0.00019581,2]
[408200330,1773221440984,-781.74,0.00019582,2]
[408200331,1773221440993,-292.37,0.000196,30]
[408200332,1773221441003,-1500.0,0.000196,2]
[408200333,1773221441011,-1500.0,0.000196,2]
[408200334,1773221441020,-2544.262751,0.000196,2]
[408200335,1773221441029,-2000.0,0.000196,2]
[408200336,1773221441039,-1000.0,0.00019615,2]
[408200337,1773221441047,-640.239,0.00019615,2]
[408200338,1773221441056,-168.0,0.00019673,2]
[408200339,1773221441066,-3482.43985921,0.000197,2]
[408200340,1773221441075,-2000.0,0.000197,2]
[408200341,1773221441084,-2357.097,0.00019733,2]
[408200342,1773221441092,-299.53,0.00019796,2]
[408200343,1773221441101,-105279.3227,0.000198,2]
[408200344,1773221441111,-150.0,0.000198,30]
[408200345,1773221441120,-2000.0,0.000198,2]
[408200346,1773221441129,-49541.73241373,0.0001981,2]
[408200347,1773221441139,-9025.28669702,0.00019815,2]
[408200348,1773221441149,-533.36,0.0001984,2]
[408200349,1773221441159,-781.74,0.00019856,2]
[408200350,1773221441169,-200.0,0.0001989,2]
[408200351,1773221441178,-554.34014391,0.00019899,2]
[408200352,1773221441187,-978.49963093,0.000199,2]
[408200353,1773221441196,-200.76634596,0.000199,2]
[408200354,1773221441205,-1290.02378095,0.000199,2]
[408200355,1773221441214,-1260.8070095,0.000199,2]
[408200356,1773221441223,-2000.0,0.000199,2]
[408200357,1773221441233,-5062.65259962,0.000199,2]
[408200358,1773221441242,-8045.81811078,0.000199,2]
[408200359,1773221441251,-23871.13,0.00019902,2]
[408200360,1773221441260,-2326.61612461,0.00019927,2]
[408200361,1773221441269,-152.90665268,0.0001994,2]
[408200362,1773221441279,-1000.0,0.0001997,2]
[408200363,1773221441289,-500.0,0.0001997,2]
[408200364,1773221441299,-1000.0,0.0001997,2]
[408200365,1773221441308,-500.0,0.0001997,2]
[408200366,1773221441317,-1000.0,0.0001997,2]
[408200367,1773221441327,-1195.07629146,0.0001997,2]
[408200368,1773221441336,-702.39647554,0.0001997,2]
[408200369,1773221441345,-500.0,0.00019973,2]
[408200370,1773221441354,-500.0,0.00019973,2]
[408200371,1773221441363,-500.0,0.00019973,2]
[408200372,1773221441372,-732.9089404,0.0001999,2]